bitfinex-derivatives/quotes_SOLF0:USTF0_20250202
["timestamp","ask_amount","ask_price","bid_price","bid_amount"]
[1738464792075,1.4327,214.78,214.63,4.6598]
[1738464792273,0.02961239,214.68,214.64,0.03467315]
[1738464792473,1.4327,214.78,214.63,4.6598]
[1738464792474,4.6583,214.7,214.63,4.6598]
[1738464792673,0.03139177,214.68,214.64,0.03083931]
[1738464797174,4.6594,214.65,214.64,0.03083931]
[1738464798173,1.5605,214.67,214.64,0.03083931]
[1738464798376,6.2196,214.67,214.64,0.03083931]
[1738464798974,0.03139177,214.68,214.64,0.03083931]
[1738464799682,0.03139177,214.68,214.64,4.69023931]
[1738464799886,0.03139177,214.68,214.64,0.03083931]
[1738464801987,4.6592,214.66,214.64,0.03083931]
[1738464802285,0.03139177,214.68,214.64,0.03083931]
[1738464803083,0.03139177,214.68,214.44,97.48698949]
[1738464803084,20.66245956,214.65,214.44,97.48698949]
[1738464803388,20.66245956,214.6,214.44,76.82452993]
[1738464804289,0.03166061,214.54,214.5,0.03242902]
[1738464810689,4.69346061,214.54,214.5,0.03242902]
[1738464811093,0.03166061,214.54,214.5,0.03242902]
[1738464811290,4.6623,214.52,214.5,0.03242902]
[1738464811787,0.03166061,214.54,214.5,0.03242902]
[1738464811993,4.6624,214.51,214.5,0.03242902]
[1738464812493,4.6642,214.43,214.4,0.17332]
[1738464812788,20.66245956,214.46,214.4,0.17332]
[1738464813195,3.0115,214.5,214.35,20.35337372]
[1738464813196,20.66245956,214.42,214.35,20.35337372]
[1738464813797,4.6651,214.39,214.35,20.35337372]
[1738464814195,0.03531786,214.41,214.35,20.35337372]
[1738464815090,4.70011786,214.41,214.27,22.14005956]
[1738464815294,0.03531786,214.41,214.27,22.14005956]
[1738464815495,20.66245956,214.46,214.27,22.14005956]
[1738464815695,0.03325066,214.36,214.35,4.6659]
[1738464815899,3.0115,214.5,214.35,20.66245956]
[1738464816200,4.6632,214.48,214.4,4.6647]
[1738464816894,4.6634,214.47,214.4,4.6647]
[1738464817093,0.03158103,214.46,214.42,0.03371037]
[1738464818001,23.67395956,214.5,214.42,0.03371037]
[1738464818499,4.664,214.44,214.42,0.03371037]
[1738464819812,0.03034926,214.45,214.42,0.03371037]
[1738464821202,4.664,214.44,214.42,0.03371037]
[1738464821700,4.63168222,214.44,214.42,0.03371037]
[1738464822707,0.03034926,214.45,214.42,0.03371037]
[1738464823202,4.6646,214.41,214.4,76.82452993]
[1738464824501,1.55304926,214.45,214.38,127.5746375]
[1738464824502,4.665,214.39,214.38,0.03161715]
[1738464824703,1.5227,214.45,214.38,0.03161715]
[1738464825106,0.03469106,214.41,214.38,0.03161715]
[1738464825305,4.6648,214.4,214.38,0.03161715]
[1738464826509,1.5227,214.45,214.38,0.03161715]
[1738464827709,4.6648,214.4,214.38,0.03161715]
[1738464827905,0.029758,214.44,214.38,0.03161715]
[1738464828802,4.6648,214.4,214.38,0.03161715]
[1738464829010,0.029758,214.44,214.38,0.03161715]
[1738464829309,1.4475,214.43,214.38,0.03161715]
[1738464829705,4.665,214.39,214.38,0.03161715]
[1738464831012,0.029758,214.44,214.38,0.03161715]
[1738464831611,4.665,214.39,214.38,0.03161715]
[1738464832311,4.6648,214.41,214.38,0.03161715]
[1738464832709,0.029758,214.44,214.38,0.03161715]
[1738464832914,20.66245956,214.42,214.35,120.46042035]
[1738464833218,20.66245956,214.36,214.35,31.20528873]
[1738464833410,25.32815956,214.36,214.35,12.73918873]
[1738464834110,25.32815956,214.36,214.35,5.70748873]
[1738464834412,25.32815956,214.36,214.35,1.12878873]
[1738464835410,4.6661,214.34,214.33,0.03087104]
[1738464838411,4.6659,214.35,214.33,0.03087104]
[1738464838707,20.66245956,214.36,214.33,0.03087104]
[1738464839814,4.6661,214.34,214.33,0.03087104]
[1738464840015,4.6661,214.34,214.19,20.66245956]
[1738464841014,4.6661,214.34,214.27,4.6676]
[1738464841214,0.03291492,214.29,214.27,4.6676]
[1738464842709,4.6661,214.35,214.19,20.66245956]
[1738464842914,20.66245956,214.39,214.19,20.66245956]
[1738464843114,4.6655,214.37,214.25,4.6681]
[1738464843312,20.66245956,214.39,214.19,20.66245956]
[1738464843814,4.6655,214.38,214.31,4.6666]
[1738464844016,20.66245956,214.39,214.31,4.6666]
[1738464844215,0.03062404,214.37,214.32,0.0317665]
[1738464845220,0.03062404,214.37,214.36,4.6657]
[1738464845420,76.76573963,214.47,214.33,1.4527]
[1738464845613,56.10328007,214.47,214.33,1.4527]
[1738464845815,4.6642,214.43,214.34,4.6659]
[1738464846015,56.10328007,214.47,214.33,1.4527]
[1738464846617,0.03250713,214.42,214.38,0.03530321]
[1738464847719,4.69690713,214.42,214.38,0.03530321]
[1738464848617,0.03250713,214.42,214.38,0.03530321]
[1738464852014,4.6646,214.41,214.38,0.03530321]
[1738464852214,0.03250713,214.42,214.38,0.03530321]
[1738464852617,4.6647,214.41,214.38,0.03530321]
[1738464852917,0.03250713,214.42,214.38,0.03530321]
[1738464853217,4.6649,214.4,214.38,0.03530321]
[1738464854118,4.665,214.39,214.38,0.03530321]
[1738464854511,0.03250713,214.42,214.38,0.03530321]
[1738464856617,0.03250713,214.42,214.38,4.70040321]
[1738464856817,0.03250713,214.42,214.38,0.03530321]
[1738464857218,0.03250713,214.42,214.39,4.665]
[1738464857722,0.03250713,214.42,214.4,4.6646]
[1738464858523,4.6634,214.47,214.38,0.03530321]
[1738464859019,4.6634,214.47,214.4,4.6648]
[1738464859220,4.6626,214.51,214.39,12.92404199]
[1738464859423,0.02997033,214.47,214.39,12.92404199]
[1738464859624,0.02997033,214.47,214.43,0.03197601]
[1738464860323,0.02997033,214.47,214.43,4.69607601]
[1738464860525,0.02997033,214.47,214.43,0.03197601]
[1738464860725,0.02997033,214.47,214.36,0.35303902]
[1738464860927,0.02997033,214.47,214.39,12.92404199]
[1738464861424,12.92404199,214.53,214.39,12.92404199]
[1738464861824,0.03402746,214.48,214.44,4.69946922]
[1738464862029,0.03402746,214.48,214.44,0.03556922]
[1738464862325,1.4831,214.57,214.45,12.92404199]
[1738464863327,4.69403795,214.53,214.49,0.03135236]
[1738464863527,0.03203795,214.53,214.49,0.03135236]
[1738464863928,4.69423795,214.53,214.49,0.03135236]
[1738464864532,0.03203795,214.53,214.49,0.03135236]
[1738464864921,2.9652,214.63,214.49,0.03135236]
[1738464864922,2.9371,214.63,214.51,12.92404199]
[1738464865122,4.6602,214.62,214.55,4.6615]
[1738464865327,1.4694,214.63,214.54,12.92404199]
[1738464865529,6.28881196,214.66,214.54,12.92404199]
[1738464865728,10.94821196,214.66,214.58,4.6609]
[1738464866132,0.03397183,214.64,214.6,0.03329812]
[1738464866828,0.03397183,214.64,214.61,4.6601]
[1738464867032,0.03397183,214.64,214.6,12.95734011]
[1738464867236,6.28881196,214.66,214.6,12.95734011]
[1738464867432,6.28881196,214.66,214.63,17.58384199]
[1738464867631,1.4694,214.75,214.63,17.58384199]
[1738464867841,1.5094,214.74,214.63,4.6598]
[1738464868345,0.02942266,214.71,214.66,0.03332414]
[1738464869045,0.02942266,214.71,214.68,4.6586]
[1738464869244,0.02942266,214.71,214.66,0.03332414]
[1738464871844,0.02942266,214.71,214.66,4.69232414]
[1738464872041,0.02942266,214.71,214.66,0.03332414]
[1738464872949,0.02942266,214.71,214.68,4.6587]
[1738464873147,0.02942266,214.71,214.66,0.03332414]
[1738464874948,0.02942266,214.71,214.59,4.6606]
[1738464874949,20.65653437,214.71,214.57,1.5133]
[1738464875148,20.62711171,214.67,214.48,20.62711171]
[1738464875443,20.62711171,214.67,214.49,1.5486]
[1738464876249,0.0334879,214.6,214.56,0.03220778]
[1738464877745,4.661,214.58,214.56,0.03220778]
[1738464878752,0.0334879,214.6,214.44,20.62711171]
[1738464879045,1.4798,214.59,214.45,1.5133]
[1738464879248,4.6625,214.51,214.45,1.5133]
[1738464879445,1.4798,214.59,214.45,1.5133]
[1738464879948,0.03052682,214.54,214.5,0.03167472]
[1738464880146,0.03052682,214.54,214.39,25.29201171]
[1738464880345,0.03052682,214.54,214.39,20.62711171]
[1738464880547,4.6638,214.45,214.39,20.62711171]
[1738464881146,20.62711171,214.56,214.39,20.62711171]
[1738464881343,1.4798,214.59,214.4,0.03337057]
[1738464881344,20.62711171,214.52,214.4,0.03337057]
[1738464881548,0.03341216,214.44,214.4,0.03337057]
[1738464881750,4.6649,214.4,214.35,20.62711171]
[1738464882047,4.6649,214.4,214.33,1.5065]
[1738464882246,4.6313,214.51,214.35,0.03416981]
[1738464882448,0.02964698,214.4,214.35,0.03416981]
[1738464882747,4.6313,214.51,214.35,0.03214108]
[1738464882948,0.03514869,214.4,214.35,0.03214108]
[1738464883149,4.6313,214.51,214.31,20.62711171]
[1738464883451,0.03022808,214.4,214.35,0.03074131]
[1738464883752,1.4113,214.47,214.31,20.62711171]
[1738464883953,0.03240231,214.4,214.35,0.03155247]
[1738464884149,4.6652,214.39,214.35,0.03155247]
[1738464884355,0.03240231,214.4,214.35,0.03155247]
[1738464884750,4.69740231,214.4,214.35,0.03155247]
[1738464885252,4.6651,214.39,214.35,0.03155247]
[1738464885450,0.03240231,214.4,214.35,0.03155247]
[1738464885953,4.6651,214.39,214.35,0.03155247]
[1738464889053,0.03240231,214.4,214.35,0.03155247]
[1738464889256,0.03240231,214.4,214.35,20.65866418]
[1738464889857,3.22,214.58,214.39,20.62711171]
[1738464890157,1.5597,214.51,214.39,20.62711171]
[1738464890357,4.6631,214.49,214.39,25.29191171]
[1738464890555,4.6631,214.49,214.39,20.62711171]
[1738464890756,1.5597,214.51,214.39,20.62711171]
[1738464890962,4.6632,214.48,214.4,4.6647]
[1738464891153,0.03157341,214.46,214.42,0.03176463]
[1738464892054,4.6641,214.44,214.42,0.03176463]
[1738464893356,4.69527341,214.46,214.42,0.03176463]
[1738464893554,0.03157341,214.46,214.42,0.03176463]
[1738464894355,0.03157341,214.46,214.42,4.69616463]
[1738464894857,0.03157341,214.46,214.42,0.03176463]
[1738464897563,4.6638,214.45,214.42,0.03176463]
[1738464898463,4.664,214.44,214.42,0.03176463]
[1738464900062,4.6641,214.44,214.42,0.03176463]
[1738464900263,0.03157341,214.46,214.31,20.62711171]
[1738464900463,3.2,214.46,214.31,20.62711171]
[1738464900864,4.6655,214.37,214.31,25.29391171]
[1738464901667,0.03118127,214.36,214.32,0.03401607]
[1738464902566,4.69688127,214.36,214.32,0.03401607]
[1738464903362,0.03118127,214.36,214.32,0.03401607]
[1738464903567,3.2,214.49,214.35,25.29301171]
[1738464904068,4.6648,214.41,214.35,25.29301171]
[1738464904668,0.03237346,214.4,214.36,0.03271335]
[1738464906271,4.6651,214.39,214.36,0.03271335]
[1738464906571,0.03237346,214.4,214.36,0.03271335]
[1738464906766,4.6655,214.37,214.27,20.62711171]
[1738464906974,2.8965,214.39,214.23,22.07961171]
[1738464907773,4.6664,214.33,214.25,4.6679]
[1738464908071,0.03103021,214.33,214.29,0.03323557]
[1738464909574,4.69743021,214.33,214.29,0.03323557]
[1738464910169,0.03103021,214.33,214.29,0.03323557]
[1738464910770,4.6669,214.31,214.29,0.03323557]
[1738464911470,0.03103021,214.33,214.29,0.03323557]
[1738464912673,4.667,214.3,214.29,0.03323557]
[1738464912875,0.03103021,214.33,214.17,22.07381171]
[1738464913070,4.6673,214.29,214.22,4.6685]
[1738464913272,3.18,214.35,214.17,22.07381171]
[1738464914075,0.03236474,214.28,214.24,0.02965085]
[1738464914375,4.6677,214.27,214.24,0.02965085]
[1738464915070,0.03236474,214.28,214.24,0.02965085]
[1738464915776,0.03236474,214.28,214.25,12.93846383]
[1738464915971,0.03236474,214.28,214.25,17.60646383]
[1738464916477,4.6663,214.34,214.27,4.6677]
[1738464916678,2.8965,214.39,214.29,12.93846383]
[1738464916874,12.93846383,214.36,214.23,12.93846383]
[1738464917175,3.18,214.38,214.26,12.93846383]
[1738464917675,0.03175871,214.34,214.3,0.02972268]
[1738464917876,3.18,214.38,214.24,25.36791648]
[1738464918075,0.03146819,214.34,214.3,0.03140914]
[1738464918273,4.6668,214.31,214.3,0.03140914]
[1738464921679,4.6668,214.31,214.12,2.9007]
[1738464921680,20.73108467,214.34,214.12,20.69961648]
[1738464921976,2.8965,214.39,214.24,20.69961648]
[1738464922182,2.8965,214.39,214.28,20.69961648]
[1738464922776,0.03470338,214.36,214.31,0.03179628]
[1738464922979,4.666,214.35,214.31,0.03179628]
[1738464923481,0.03470338,214.36,214.31,0.03179628]
[1738464924479,0.03470338,214.36,214.2,20.69961648]
[1738464924681,3.3,214.35,214.19,1.4431]
[1738464925682,4.6677,214.28,214.19,6.1125]
[1738464927185,4.6677,214.28,214.19,7.5355]
[1738464927384,4.6677,214.27,214.19,7.5355]
[1738464927783,0.0325179,214.29,214.19,7.5355]
[1738464927784,0.0325179,214.29,214.2,20.69961648]
[1738464929382,4.668,214.26,214.2,20.69961648]
[1738464929583,4.668,214.26,214.19,2.8661]
[1738464929782,20.69961648,214.38,214.19,2.8661]
[1738464929984,0.02938925,214.25,214.19,2.8661]
[1738464930285,0.03188036,214.24,214.19,2.8661]
[1738464930486,4.6665,214.33,214.21,4.6688]
[1738464930686,0.03006859,214.24,214.19,2.8661]
[1738464930886,20.69961648,214.38,214.19,2.8661]
[1738464931088,0.03419247,214.24,214.19,2.8661]
[1738464931289,20.69961648,214.38,214.19,2.8661]
[1738464931489,0.03352515,214.24,214.19,2.8661]
[1738464931684,20.69961648,214.38,214.19,2.8661]
[1738464931882,0.03014879,214.24,214.2,4.6691]
[1738464932096,4.6672,214.29,214.19,2.8661]
[1738464932290,0.03480293,214.24,214.19,2.8661]
[1738464932591,4.6672,214.29,214.19,2.8661]
[1738464932790,4.6669,214.31,214.19,2.8661]
[1738464932992,20.69961648,214.38,214.19,2.8661]
[1738464933193,20.69961648,214.38,214.24,4.6683]
[1738464933491,20.69961648,214.38,214.19,2.8661]
[1738464933790,0.03490043,214.33,214.29,0.03504783]
[1738464933983,4.667,214.3,214.29,0.03504783]
[1738464936193,4.6685,214.24,214.19,2.8661]
[1738464936393,20.69961648,214.34,214.19,2.8661]
[1738464937091,20.69961648,214.34,214.19,7.5355]
[1738464937393,0.02936598,214.29,214.19,7.5355]
[1738464937691,0.02936598,214.29,214.2,4.6692]
[1738464937893,4.69656598,214.29,214.19,2.8661]
[1738464938792,4.69656598,214.29,214.22,4.6685]
[1738464939489,4.6675,214.28,214.22,4.6685]
[1738464939795,0.02936598,214.29,214.22,12.93995292]
[1738464940897,4.69656598,214.29,214.23,4.6685]
[1738464942299,0.02936598,214.29,214.23,4.6685]
[1738464942500,4.6674,214.28,214.23,4.6685]
[1738464942793,0.02936598,214.29,214.22,12.93995292]
[1738464942998,0.02936598,214.29,214.19,15.80605292]
[1738464943597,4.6684,214.24,214.19,15.80605292]
[1738464944000,4.6673,214.29,214.19,20.47545292]
[1738464944202,0.03401263,214.24,214.19,20.47545292]
[1738464945102,0.03401263,214.24,214.2,4.6691]
[1738464947905,4.70241263,214.24,214.19,15.80605292]
[1738464949709,0.03401263,214.24,214.19,15.80605292]
[1738464950509,0.03401263,214.24,214.21,4.6688]
[1738464951409,0.03401263,214.24,214.19,15.80605292]
[1738464951708,0.03401263,214.24,214.2,4.6692]
[1738464952501,0.03401263,214.24,214.19,15.80605292]
[1738464952705,4.70251263,214.24,214.19,20.47545292]
[1738464953207,0.03401263,214.24,214.16,12.93995292]
[1738464953410,3.0496,214.29,214.16,12.93995292]
[1738464953711,0.0316895,214.22,214.13,12.93995292]
[1738464953913,0.0316895,214.22,214.15,4.6701]
[1738464953914,4.6692,214.2,214.15,4.6701]
[1738464954210,0.0316895,214.22,214.13,12.93995292]
[1738464954607,4.7004895,214.22,214.13,12.93995292]
[1738464955411,4.669,214.21,214.16,4.6699]
[1738464955609,4.669,214.21,214.13,12.93995292]
[1738464956404,4.669,214.21,214.17,4.6698]
[1738464956809,4.669,214.21,214.13,12.93995292]
[1738464957113,4.6692,214.2,214.14,4.6703]
[1738464957309,4.6692,214.2,214.13,12.93995292]
[1738464958313,4.6692,214.2,214.15,4.6701]
[1738464960717,4.7004895,214.22,214.17,4.6697]
[1738464960916,3.0496,214.29,214.16,12.93995292]
[1738464961117,0.03282152,214.22,214.19,12.93995292]
[1738464961319,0.03282152,214.22,214.2,1.5399]
[1738464961510,0.03282152,214.22,214.21,4.669]
[1738464961715,6.37063656,214.32,214.2,1.5399]
[1738464962112,6.37063656,214.32,214.22,12.93995292]
[1738464962317,6.37063656,214.32,214.25,12.93995292]
[1738464962514,39.86019917,214.36,214.22,12.93995292]
[1738464962816,4.6668,214.32,214.22,12.93995292]
[1738464963027,0.03521473,214.31,214.26,0.03144294]
[1738464964419,4.6674,214.29,214.26,0.03144294]
[1738464964617,12.93995292,214.3,214.16,12.93995292]
[1738464965115,12.93995292,214.3,214.18,4.6696]
[1738464965622,12.93995292,214.3,214.16,12.93995292]
[1738464965920,0.03193774,214.26,214.16,12.93995292]
[1738464966120,4.6682,214.25,214.19,4.6693]
[1738464966319,0.03193774,214.26,214.19,12.93995292]
[1738464966721,0.03193774,214.26,214.21,4.6689]
[1738464966922,0.03193774,214.26,214.2,1.4487]
[1738464967421,0.03193774,214.26,214.22,4.6686]
[1738464967612,0.03193774,214.26,214.2,1.4487]
[1738464967813,4.6681,214.25,214.2,1.4487]
[1738464968419,0.03193774,214.26,214.2,1.4487]
[1738464969326,0.03193774,214.26,214.19,12.93995292]
[1738464969723,0.03193774,214.26,214.16,12.93995292]
[1738464970022,12.93995292,214.3,214.16,12.93995292]
[1738464970223,4.70218843,214.23,214.16,17.60985292]
[1738464970721,4.70218843,214.23,214.16,12.93995292]
[1738464970921,4.70218843,214.23,214.17,4.6698]
[1738464971217,4.6688,214.22,214.16,12.93995292]
[1738464971415,4.6688,214.22,214.15,4.6701]
[1738464971619,12.93995292,214.27,214.15,4.6701]
[1738464971819,0.03110329,214.21,214.13,12.93995292]
[1738464973118,0.03110329,214.21,214.15,4.6702]
[1738464973318,0.03110329,214.21,214.11,1.4359]
[1738464974722,4.6696,214.18,214.11,6.1068]
[1738464975323,0.03261159,214.17,214.11,6.1068]
[1738464976726,4.70241159,214.17,214.11,6.1068]
[1738464977128,0.03261159,214.17,214.12,4.6709]
[1738464978729,0.03261159,214.17,214.13,12.93995292]
[1738464978923,19.31058948,214.3,214.16,12.93995292]
[1738464979125,19.31058948,214.3,214.19,12.93995292]
[1738464979126,6.37063656,214.3,214.19,12.93995292]
[1738464979328,6.37063656,214.3,214.16,12.93995292]
[1738464980224,0.03097692,214.25,214.21,0.03234999]
[1738464980434,0.03097692,214.25,214.12,1.4099]
[1738464980435,4.6691,214.21,214.12,4.6709]
[1738464980627,12.93995292,214.25,214.11,1.4359]
[1738464981325,12.93995292,214.25,214.13,4.6705]
[1738464981834,0.03270031,214.21,214.13,4.6705]
[1738464982725,0.03270031,214.21,214.06,12.93995292]
[1738464982926,4.67,214.17,214.06,12.93995292]
[1738464983231,0.03529049,214.16,214.06,12.93995292]
[1738464983426,4.6705,214.14,214.06,12.93995292]
[1738464983728,0.03529049,214.16,214.06,12.93995292]
[1738464983929,4.6703,214.15,214.07,4.672]
[1738464984121,0.03529049,214.16,214.03,12.93995292]
[1738464984328,12.93995292,214.13,214.0,67.93995292]
[1738464984530,0.03258776,214.12,214.0,67.93995292]
[1738464985122,4.6712,214.11,214.03,4.6728]
[1738464985327,0.03258776,214.12,214.0,67.93995292]
[1738464985529,4.616,214.15,214.0,67.93995292]
[1738464985830,0.0303198,214.08,214.0,67.93995292]
[1738464986628,4.7022198,214.08,214.01,4.6733]
[1738464986831,0.0303198,214.08,214.03,12.93995292]
[1738464987129,0.0303198,214.08,214.03,17.61265292]
[1738464987426,0.0303198,214.08,214.03,12.93995292]
[1738464987952,0.0303198,214.08,214.04,4.6727]
[1738464988925,12.93995292,214.2,214.06,12.93995292]
[1738464989130,17.58865292,214.2,214.06,12.93995292]
[1738464989324,12.93995292,214.17,214.04,1.5434]
[1738464989532,12.93995292,214.14,214.04,1.5434]
[1738464990033,4.6716,214.09,214.04,1.5434]
[1738464990237,4.6716,214.09,214.07,0.03340702]
[1738464990533,4.6723,214.06,214.0,55.0]
[1738464991535,0.03466787,214.05,214.0,55.0]
[1738464992437,4.70716787,214.05,214.0,55.0]
[1738464992627,0.03466787,214.05,214.0,55.0]
[1738464992832,12.97462079,214.05,214.0,55.0]
[1738464993035,4.6728,214.04,214.0,55.0]
[1738464993334,0.03466787,214.05,214.0,55.0]
[1738464994334,4.6728,214.04,214.0,55.0]
[1738464994633,12.97462079,214.05,214.0,55.0]
[1738464995129,0.03466787,214.05,214.0,55.0]
[1738464995634,4.673,214.03,214.0,55.0]
[1738464996036,12.97462079,214.05,214.0,55.0]
[1738464997538,0.03466787,214.05,214.0,55.0]
[1738465000441,0.03466787,214.05,214.0,67.93995292]
[1738465001543,0.03466787,214.05,214.02,4.673]
[1738465001736,0.03466787,214.05,214.0,67.93995292]
[1738465001936,0.03466787,214.05,214.0,55.0]
[1738465002840,4.70716787,214.05,214.0,59.6734]
[1738465003338,4.6727,214.04,214.0,55.0]
[1738465003740,0.03466787,214.05,214.0,55.0]
[1738465004743,4.70716787,214.05,214.0,55.0]
[1738465004940,0.03466787,214.05,214.0,55.0]
[1738465005947,4.6729,214.03,214.0,55.0]
[1738465009548,4.70726787,214.05,214.0,55.0]
[1738465009747,0.03466787,214.05,214.0,55.0]
[1738465009952,4.70716787,214.05,214.0,55.0]
[1738465010454,0.03466787,214.05,214.0,55.0]
[1738465010650,4.6727,214.04,214.0,55.0]
[1738465011152,0.03466787,214.05,214.0,55.0]
[1738465011351,4.673,214.03,214.0,55.0]
[1738465012250,0.03466787,214.05,214.0,55.0]
[1738465012555,4.70716787,214.05,214.0,55.0]
[1738465013156,0.03466787,214.05,214.0,55.0]
[1738465013455,4.6727,214.04,214.0,55.0]
[1738465014253,0.03466787,214.05,214.0,59.6735]
[1738465014456,0.03466787,214.05,214.0,55.0]
[1738465014956,0.03466787,214.05,214.01,4.6731]
[1738465016357,0.03466787,214.05,214.0,55.0]
[1738465016859,4.6733,214.01,214.0,55.0]
[1738465017864,17.61305292,214.03,214.0,55.0]
[1738465018053,0.03466787,214.05,214.0,55.0]
[1738465018864,4.6732,214.02,214.0,55.0]
[1738465019063,0.03466787,214.05,214.0,55.0]
[1738465019259,4.70726787,214.05,214.0,55.0]
[1738465019664,0.03466787,214.05,214.0,55.0]
[1738465021667,4.6732,214.02,214.0,55.0]
[1738465022366,0.03466787,214.05,214.0,55.0]
[1738465023169,4.70716787,214.05,214.0,55.0]
[1738465023668,8.30326501,214.04,214.0,55.0]
[1738465023968,4.70716787,214.05,214.0,55.0]
[1738465024968,4.6727,214.04,214.0,55.0]
[1738465025158,0.03466787,214.05,214.0,59.6735]
[1738465025358,0.03466787,214.05,214.0,55.0]
[1738465025568,0.03466787,214.05,214.0,63.30326501]
[1738465025759,0.03466787,214.05,214.01,4.6733]
[1738465027169,4.70716787,214.05,214.0,59.6735]
[1738465028069,0.03466787,214.05,214.0,59.6735]
[1738465028266,0.03466787,214.05,214.0,67.97676501]
[1738465029370,0.03466787,214.05,214.02,8.30326501]
[1738465029570,8.30326501,214.12,214.04,8.30326501]
[1738465029964,33.78581126,214.14,214.06,8.30326501]
[1738465030163,25.48254625,214.14,214.08,8.30326501]
[1738465030371,25.48254625,214.15,214.08,8.30326501]
[1738465030566,25.48254625,214.15,214.09,4.6714]
[1738465030874,0.03283622,214.13,214.09,0.02942265]
[1738465031061,0.03283622,214.13,214.09,4.70082265]
[1738465031266,0.03283622,214.13,214.09,0.02942265]
[1738465031868,4.70373622,214.13,214.09,0.02942265]
[1738465032171,0.03283622,214.13,214.09,0.02942265]
[1738465032371,4.6709,214.12,214.09,0.02942265]
[1738465032571,0.03283622,214.13,214.09,0.02942265]
[1738465033870,4.6712,214.11,214.09,0.02942265]
[1738465034070,0.03283622,214.13,214.09,0.02942265]
[1738465034672,8.30326501,214.1,214.09,0.02942265]
[1738465035072,12.97466501,214.1,214.09,0.02942265]
[1738465036170,8.30326501,214.1,214.09,0.02942265]
[1738465036382,8.30326501,214.12,214.09,0.02942265]
[1738465036775,12.97426501,214.12,214.09,0.02942265]
[1738465037876,8.30326501,214.1,214.09,0.02942265]
[1738465038569,12.97426501,214.12,214.09,0.02942265]
[1738465040779,8.30326501,214.12,214.09,0.02942265]
[1738465040979,12.97466501,214.1,214.09,0.02942265]
[1738465041276,0.03283622,214.13,214.09,8.33268766]
[1738465041478,0.03283622,214.13,214.11,8.30326501]
[1738465042375,0.03283622,214.13,214.09,8.33268766]
[1738465042574,0.03283622,214.13,214.09,0.02942265]
[1738465042774,8.30326501,214.12,214.09,0.02942265]
[1738465043674,0.03283622,214.13,214.09,0.02942265]
[1738465044279,4.6714,214.1,214.09,0.02942265]
[1738465045713,4.6724,214.06,214.0,56.4529]
[1738465046707,0.0318434,214.05,214.0,56.4529]
[1738465048809,4.7043434,214.05,214.0,56.4529]
[1738465049404,4.7043434,214.05,214.0,61.1262]
[1738465049405,0.0318434,214.05,214.0,61.1262]
[1738465049593,0.0318434,214.05,214.0,56.4529]
[1738465049892,0.0318434,214.05,214.04,4.6727]
[1738465051188,0.0318434,214.05,214.01,4.6732]
[1738465051385,0.0318434,214.05,214.0,56.4529]
[1738465052791,4.7044434,214.05,214.0,61.1264]
[1738465053685,0.0318434,214.05,214.0,61.1264]
[1738465053989,0.0318434,214.05,214.01,4.6733]
[1738465054390,4.7043434,214.05,214.0,56.4529]
[1738465055689,4.7043434,214.05,214.0,61.1264]
[1738465055887,0.0318434,214.05,214.0,56.4529]
[1738465056289,0.0318434,214.05,214.03,4.6729]
[1738465056691,0.0318434,214.05,214.0,56.4529]
[1738465057989,4.7043434,214.05,214.0,56.4529]
[1738465058190,0.0318434,214.05,214.0,56.4529]
[1738465059890,0.0318434,214.05,214.01,4.6733]
[1738465061688,0.0318434,214.05,214.0,56.4529]
[1738465061888,0.0318434,214.05,214.0,69.41958071]
[1738465062293,0.0318434,214.05,214.0,56.4529]
[1738465062690,0.0318434,214.05,214.04,4.6727]
[1738465064394,0.0318434,214.05,214.04,12.97237649]
[1738465065289,8.29967649,214.13,214.04,8.29967649]
[1738465065484,8.29967649,214.13,214.06,8.29967649]
[1738465065685,8.29967649,214.15,214.08,8.29967649]
[1738465065890,8.29967649,214.17,214.08,8.29967649]
[1738465066289,19.33991305,214.19,214.12,12.97057649]
[1738465066490,0.03352588,214.15,214.12,8.29967649]
[1738465066687,0.03352588,214.15,214.14,8.29967649]
[1738465067097,0.03352588,214.15,214.14,12.97017649]
[1738465067699,0.03352588,214.15,214.14,4.6705]
[1738465068492,0.03352588,214.15,214.12,4.6707]
[1738465069194,0.03352588,214.15,214.11,14.37753836]
[1738465069395,0.03352588,214.15,214.13,4.6707]
[1738465069794,4.6686,214.23,214.14,12.95483836]
[1738465070595,4.6688,214.22,214.15,4.6701]
[1738465070888,4.6688,214.22,214.14,12.95483836]